bitfinex-derivatives/quotes_SOLF0:USTF0_20250818
["timestamp","ask_amount","ask_price","bid_price","bid_amount"]
[1755526814628,4.70022635,181.21,181.09,5.80671411]
[1755526814836,4.70022635,181.2,181.09,5.80671411]
[1755526815037,5.80671411,181.22,181.09,5.80671411]
[1755526815337,4.6995464,181.21,181.09,5.80671411]
[1755526815538,4.6995464,181.2,181.09,5.80671411]
[1755526815740,5.80671411,181.22,181.09,5.80671411]
[1755526815935,4.70002381,181.21,181.09,5.80671411]
[1755526816137,4.70002381,181.2,181.07,5.80671411]
[1755526816336,4.70002381,181.19,181.07,11.32651411]
[1755526816533,5.80671411,181.22,181.07,11.32651411]
[1755526816736,4.69922913,181.21,181.07,11.32651411]
[1755526816938,4.69922913,181.2,181.07,5.80671411]
[1755526817134,4.69922913,181.19,181.07,5.80671411]
[1755526817335,4.69922913,181.18,181.07,5.80671411]
[1755526817540,5.80671411,181.22,181.07,5.80671411]
[1755526817837,4.69911774,181.21,181.07,5.80671411]
[1755526818045,4.69911774,181.2,181.07,5.80671411]
[1755526818235,10.50583185,181.19,181.07,5.80671411]
[1755526818436,4.69911774,181.18,181.07,5.80671411]
[1755526818631,54.0,181.17,181.07,5.80671411]
[1755526819947,54.0,181.22,181.11,5.5186]
[1755526820141,4.71061468,181.21,181.11,5.5186]
[1755526820342,54.0,181.22,181.12,5.5182]
[1755526820544,4.71059326,181.21,181.12,5.5182]
[1755526820842,54.0,181.22,181.1,5.80671411]
[1755526821039,525.38172,181.23,181.1,5.80671411]
[1755526821237,525.38172,181.23,181.13,5.80671411]
[1755526822139,525.38172,181.23,181.12,5.80671411]
[1755526822644,525.38172,181.23,181.14,5.80671411]
[1755526822944,154.52172,181.23,181.14,5.80671411]
[1755526823946,4.70961361,181.22,181.11,5.80671411]
[1755526824143,154.52172,181.23,181.11,5.80671411]
[1755526824335,4.70966232,181.22,181.11,5.80671411]
[1755526824535,154.52172,181.23,181.11,5.80671411]
[1755526824745,4.70961337,181.22,181.11,5.80671411]
[1755526825048,154.52172,181.23,181.11,11.32531411]
[1755526825239,4.70985771,181.22,181.11,11.32531411]
[1755526825540,154.52172,181.23,181.11,11.32531411]
[1755526825845,154.52172,181.23,181.11,5.5186]
[1755526826046,154.52172,181.23,181.11,11.32531411]
[1755526826947,154.52172,181.23,181.11,5.80671411]
[1755526827142,154.52172,181.23,181.14,5.80671411]
[1755526828150,154.52172,181.23,181.15,5.5173]
[1755526828346,154.52172,181.23,181.14,5.80671411]
[1755526828546,5.94172,181.23,181.17,5.80671411]
[1755526830141,5.94172,181.23,181.18,5.5164]
[1755526830537,5.94172,181.23,181.17,5.80671411]
[1755526830743,5.94172,181.23,181.14,5.80671411]
[1755526831145,5.94172,181.23,181.15,5.5172]
[1755526831349,5.94172,181.23,181.14,5.80671411]
[1755526831941,5.94172,181.23,181.16,5.517]
[1755526832246,5.94172,181.23,181.15,5.80671411]
[1755526833152,5.94172,181.23,181.15,11.32401411]
[1755526833355,5.94172,181.23,181.13,5.80671411]
[1755526834745,5.94172,181.23,181.1,5.80671411]
[1755526834948,158.62110886,181.22,181.07,11.32631411]
[1755526835149,4.69406034,181.21,181.07,11.32631411]
[1755526835343,153.92671411,181.22,181.07,5.80671411]
[1755526835550,5.80671411,181.19,181.07,5.80671411]
[1755526836955,5.80671411,181.19,181.04,11.32741411]
[1755526837155,5.80671411,181.19,181.04,5.80671411]
[1755526837547,5.80671411,181.19,181.05,5.5203]
[1755526837752,5.80671411,181.19,181.04,5.80671411]
[1755526837950,5.80671411,181.19,181.07,11.32651411]
[1755526838549,153.92671411,181.22,181.07,5.80671411]
[1755526838851,4.69816701,181.21,181.07,5.80671411]
[1755526839052,153.92671411,181.22,181.07,5.80671411]
[1755526839254,4.69712046,181.21,181.1,5.5189]
[1755526839448,153.92671411,181.22,181.1,5.5189]
[1755526839648,4.69706648,181.21,181.1,11.32561411]
[1755526839854,153.92671411,181.22,181.1,5.80671411]
[1755526840150,5.94172,181.23,181.13,5.80671411]
[1755526841754,5.94172,181.23,181.14,5.5175]
[1755526842246,5.94172,181.23,181.15,5.5174]
[1755526842445,5.94172,181.23,181.13,5.80671411]
[1755526842656,5.94172,181.23,181.16,5.80671411]
[1755526842857,5.94172,181.23,181.16,11.32361411]
[1755526843059,5.94172,181.23,181.16,5.80671411]
[1755526843756,5.94172,181.23,181.19,5.80671411]
[1755526845448,5.94172,181.23,181.21,5.5155]
[1755526846354,5.94172,181.23,181.22,11.32201411]
[1755526846759,147.98,181.34,181.22,6.36671411]
[1755526846958,147.98,181.34,181.14,6.09998063]
[1755526847257,147.98,181.34,181.24,5.80671411]
[1755526849456,4.70142786,181.33,181.24,5.80671411]
[1755526849758,147.98,181.34,181.24,5.80671411]
[1755526850062,4.70225368,181.33,181.24,5.80671411]
[1755526850263,147.98,181.34,181.24,5.80671411]
[1755526850464,4.70290878,181.33,181.24,5.80671411]
[1755526850665,147.98,181.34,181.24,5.80671411]
[1755526850959,4.70372972,181.33,181.24,5.80671411]
[1755526851164,147.98,181.34,181.24,5.80671411]
[1755526851364,4.70291917,181.33,181.24,5.80671411]
[1755526851567,147.98,181.34,181.24,5.80671411]
[1755526851860,4.70185662,181.33,181.24,5.80671411]
[1755526852065,147.98,181.34,181.24,5.80671411]
[1755526852359,4.70164395,181.33,181.24,5.80671411]
[1755526852563,147.98,181.34,181.24,5.80671411]
[1755526852765,4.70392195,181.33,181.24,5.80671411]
[1755526852966,147.98,181.34,181.24,5.80671411]
[1755526853263,4.70380025,181.33,181.24,5.80671411]
[1755526853464,4.70380025,181.32,181.24,5.80671411]
[1755526853665,147.98,181.34,181.24,5.80671411]
[1755526853853,4.70321905,181.33,181.24,5.80671411]
[1755526854059,4.70321905,181.32,181.24,5.80671411]
[1755526854258,147.98,181.34,181.24,5.80671411]
[1755526854464,4.70328568,181.33,181.24,5.80671411]
[1755526854658,4.70328568,181.32,181.24,5.80671411]
[1755526854858,147.98,181.34,181.24,5.80671411]
[1755526855162,4.70326727,181.33,181.24,5.80671411]
[1755526855361,4.70326727,181.32,181.24,5.80671411]
[1755526855561,147.98,181.34,181.24,5.80671411]
[1755526855763,4.7036527,181.33,181.24,5.80671411]
[1755526855964,4.7036527,181.32,181.24,5.80671411]
[1755526856166,54.0,181.35,181.27,5.80671411]
[1755526856363,4.70464365,181.34,181.27,5.80671411]
[1755526856563,54.0,181.35,181.15,6.09998063]
[1755526856766,4.70316595,181.34,181.24,5.80671411]
[1755526856963,54.0,181.35,181.24,5.80671411]
[1755526857266,4.7049517,181.34,181.24,5.80671411]
[1755526857468,54.0,181.35,181.24,5.80671411]
[1755526857666,4.70580627,181.34,181.24,5.80671411]
[1755526857965,4.70608593,181.33,181.24,11.32121411]
[1755526858163,54.0,181.35,181.24,5.80671411]
[1755526858364,4.70560033,181.34,181.24,5.80671411]
[1755526858567,4.70587653,181.33,181.24,5.80671411]
[1755526858764,54.0,181.35,181.24,5.80671411]
[1755526859068,4.70563044,181.34,181.24,5.80671411]
[1755526859270,4.70563044,181.33,181.24,5.80671411]
[1755526859569,54.0,181.35,181.24,5.80671411]
[1755526859767,4.70531833,181.34,181.24,5.80671411]
[1755526859968,4.70531833,181.33,181.24,5.80671411]
[1755526860264,54.0,181.35,181.24,5.80671411]
[1755526860464,5.80671411,181.33,181.21,5.80671411]
[1755526860663,58.70666395,181.32,181.21,5.80671411]
[1755526860866,4.70666395,181.31,181.21,5.80671411]
[1755526861071,4.70666395,181.3,181.21,5.80671411]
[1755526861262,54.0,181.32,181.21,5.80671411]
[1755526861458,4.70480031,181.31,181.21,5.80671411]
[1755526861664,54.0,181.32,181.21,5.80671411]
[1755526861963,4.70548088,181.31,181.21,5.80671411]
[1755526862164,54.0,181.32,181.21,5.80671411]
[1755526862468,4.70649247,181.31,181.21,5.80671411]
[1755526862667,54.0,181.32,181.21,5.80671411]
[1755526862868,4.70653032,181.31,181.21,5.80671411]
[1755526863069,54.0,181.32,181.21,5.80671411]
[1755526863369,4.70653033,181.31,181.21,5.80671411]
[1755526863573,54.0,181.32,181.21,5.80671411]
[1755526863771,4.70807628,181.31,181.21,5.80671411]
[1755526864066,54.0,181.32,181.2,5.5159]
[1755526864272,4.70807106,181.31,181.2,5.80671411]
[1755526864564,54.0,181.32,181.2,5.80671411]
[1755526864768,4.70877172,181.31,181.2,5.80671411]
[1755526864961,54.0,181.32,181.2,5.80671411]
[1755526865159,4.70886202,181.31,181.2,5.80671411]
[1755526865366,54.0,181.32,181.2,5.80671411]
[1755526865568,4.70951763,181.31,181.2,5.80671411]
[1755526865869,54.0,181.32,181.2,11.32241411]
[1755526866066,54.0,181.31,181.2,5.80671411]
[1755526866272,54.0,181.31,181.23,5.80671411]
[1755526866770,54.0,181.31,181.15,6.09998063]
[1755526866771,146.59764248,181.35,181.26,5.80671411]
[1755526867266,146.59764248,181.35,181.29,5.80671411]
[1755526867466,518.56,181.38,181.29,11.31961411]
[1755526867663,518.56,181.38,181.29,5.80671411]
[1755526870265,16.57,181.45,181.29,5.80671411]
[1755526870471,16.57,181.43,181.32,5.80671411]
[1755526870670,4.70882862,181.42,181.32,5.80671411]
[1755526870874,370.6,181.5,181.35,5.80671411]
[1755526871173,154.80086269,181.49,181.35,5.80671411]
[1755526871365,4.71141496,181.48,181.35,5.80671411]
[1755526871568,4.71141496,181.47,181.35,5.80671411]
[1755526871769,4.71141496,181.46,181.35,5.80671411]
[1755526871970,4.71141496,181.45,181.32,5.80671411]
[1755526872276,4.71141496,181.44,181.32,5.80671411]
[1755526872572,4.71141496,181.43,181.32,5.80671411]
[1755526872871,5.80671411,181.47,181.32,11.31891411]
[1755526873074,4.70406604,181.46,181.32,5.80671411]
[1755526873276,5.80671411,181.44,181.32,5.80671411]
[1755526873475,4.70406604,181.43,181.32,5.80671411]
[1755526873669,5.80671411,181.44,181.3,5.80671411]
[1755526873864,5.80671411,181.44,181.24,370.6]
[1755526873865,4.70115999,181.43,181.24,370.6]
[1755526874069,4.70115999,181.42,181.3,11.31951411]
[1755526874364,4.70009874,181.41,181.3,11.31951411]
[1755526874569,5.80671411,181.44,181.3,11.31951411]
[1755526874768,4.70009874,181.43,181.3,11.31951411]
[1755526874970,5.80671411,181.44,181.3,11.31951411]
[1755526875270,4.70006028,181.43,181.3,5.80671411]
[1755526875464,4.70006028,181.42,181.3,5.80671411]
[1755526875671,5.80671411,181.44,181.24,370.6]
[1755526875672,22.37671411,181.44,181.24,370.6]
[1755526875878,5.80671411,181.38,181.25,5.80671411]
[1755526876074,54.0,181.37,181.25,5.80671411]
[1755526877171,4.69779648,181.36,181.25,5.80671411]
[1755526877474,10.50388729,181.35,181.21,5.80671411]
[1755526877691,4.69717318,181.34,181.21,5.80671411]
[1755526877973,4.69717318,181.33,181.21,5.80671411]
[1755526878169,22.37671411,181.35,181.21,5.80671411]
[1755526878374,4.69551059,181.34,181.21,5.80671411]
[1755526878582,4.69551059,181.33,181.21,5.80671411]
[1755526878770,22.37671411,181.35,181.21,5.80671411]
[1755526878972,4.70355159,181.34,181.21,5.80671411]
[1755526879278,4.70355159,181.33,181.21,11.32221411]
[1755526879478,22.37671411,181.35,181.21,5.80671411]
[1755526879681,4.70525363,181.34,181.21,5.80671411]
[1755526879883,4.70525363,181.33,181.21,5.80671411]
[1755526880179,27.08171183,181.32,181.19,219.35018319]
[1755526880377,4.70499772,181.31,181.19,213.83398319]
[1755526880578,4.70499772,181.31,181.21,5.80671411]
[1755526880777,5.80671411,181.35,181.21,5.80671411]
[1755526880974,4.70681691,181.34,181.21,5.80671411]
[1755526881175,4.70681691,181.33,181.21,5.80671411]
[1755526881479,4.70681691,181.32,181.21,11.32201411]
[1755526881680,5.80671411,181.35,181.21,5.80671411]
[1755526881881,4.71022661,181.34,181.24,5.80671411]
[1755526882180,147.28,181.36,181.24,5.80671411]
[1755526882381,4.71144238,181.35,181.25,5.5142]
[1755526882682,4.71144238,181.34,181.27,5.80671411]
[1755526882880,147.28,181.36,181.19,213.83398319]
[1755526883072,4.71463252,181.35,181.23,5.80671411]
[1755526883272,58.71463252,181.34,181.23,5.80671411]
[1755526883474,4.71463252,181.33,181.2,5.80671411]
[1755526883975,4.71463252,181.33,181.23,5.5149]
[1755526884172,59.80671411,181.34,181.2,5.80671411]
[1755526884377,4.71851997,181.33,181.19,213.83398319]
[1755526884678,54.0,181.32,181.21,11.32221411]
[1755526884980,4.720908,181.31,181.21,5.80671411]
[1755526885187,58.720908,181.3,181.21,5.80671411]
[1755526885388,4.720908,181.29,181.21,5.80671411]
[1755526886286,4.720908,181.29,181.19,219.35008319]
[1755526886490,4.720908,181.29,181.16,156.27656576]
[1755526886788,54.0,181.28,181.16,156.27656576]
[1755526887187,54.0,181.28,181.16,147.24]
[1755526887488,4.72493534,181.27,181.16,147.24]
[1755526887687,4.72462692,181.26,181.16,147.24]
[1755526887887,54.0,181.28,181.14,9.03656576]
[1755526888084,4.72489557,181.27,181.1,9.03656576]
[1755526888283,4.72489557,181.26,181.09,147.2]
[1755526888487,4.72489557,181.25,181.09,147.2]
[1755526888790,4.72489557,181.24,181.09,147.2]
[1755526888985,4.72489557,181.23,181.09,147.2]
[1755526889188,4.72489557,181.22,181.11,5.5187]
[1755526889383,147.18,181.26,181.11,5.5187]
[1755526889586,4.72278497,181.25,181.11,5.5187]
[1755526889785,4.72278497,181.24,181.1,5.5189]
[1755526889990,4.72278497,181.23,181.09,147.2]
[1755526890285,4.72278497,181.22,181.09,147.2]
[1755526890586,147.18,181.26,181.09,147.2]
[1755526890790,4.72191195,181.25,181.09,147.2]
[1755526890989,4.72191195,181.24,181.09,147.2]
[1755526891183,4.72191195,181.23,181.09,147.2]
[1755526891383,147.18,181.26,181.09,156.23656576]
[1755526891584,4.72066758,181.25,181.09,147.2]
[1755526891783,4.72066758,181.24,181.09,147.2]
[1755526891987,4.72066758,181.23,181.11,5.5186]
[1755526892186,4.72066758,181.22,181.09,147.2]
[1755526892383,147.18,181.26,181.09,147.2]
[1755526892589,4.72110791,181.25,181.13,5.518]
[1755526892891,147.18,181.26,181.09,147.2]
[1755526892892,4.72110791,181.24,181.09,147.2]
[1755526893092,147.18,181.26,181.09,147.2]
[1755526893093,4.7195354,181.23,181.12,5.5181]
[1755526893395,147.18,181.26,181.09,147.2]
[1755526893598,4.71931781,181.25,181.15,5.5174]
[1755526893791,58.71954991,181.24,181.15,5.5174]
[1755526894095,54.0,181.24,181.12,9.03656576]
[1755526895197,54.0,181.24,181.14,5.5176]
[1755526895496,54.0,181.24,181.12,9.03656576]
[1755526895699,4.71746431,181.23,181.12,9.03656576]
[1755526895998,54.0,181.24,181.12,9.03656576]
[1755526896297,54.0,181.24,181.09,147.2]
[1755526896298,4.71559553,181.23,181.09,147.2]
[1755526896501,172.78656576,181.26,181.09,147.2]
[1755526896502,54.0,181.22,181.09,147.2]
[1755526897993,54.0,181.22,181.13,5.518]
[1755526898588,54.0,181.22,181.14,5.5177]
[1755526898900,54.0,181.22,181.09,147.2]
[1755526899294,54.0,181.22,181.12,5.5181]
[1755526899903,54.0,181.22,181.11,5.5185]
[1755526900488,54.0,181.22,181.09,147.2]
[1755526900694,54.0,181.22,181.12,9.03656576]
[1755526900990,54.0,181.22,181.11,9.03656576]
[1755526901195,54.0,181.22,181.13,5.5179]
[1755526901490,54.0,181.27,181.13,5.5179]
[1755526901695,54.0,181.26,181.15,5.5172]
[1755526901896,54.0,181.26,181.11,9.03656576]
[1755526902293,54.0,181.26,181.16,5.5169]
[1755526902691,54.0,181.26,181.15,5.5174]
[1755526903002,54.0,181.26,181.11,9.03656576]
[1755526903391,54.0,181.26,181.13,5.5177]
[1755526904200,54.0,181.26,181.11,9.03656576]
[1755526904599,54.0,181.26,181.15,5.5172]
[1755526904799,54.0,181.26,181.11,9.03656576]
[1755526905297,156.11656576,181.31,181.08,9.03656576]
[1755526905298,70.57,181.25,181.08,9.03656576]
[1755526905603,21.28872997,181.24,181.08,9.03656576]
[1755526905791,54.0,181.23,181.08,9.03656576]
[1755526906192,54.0,181.23,181.09,5.5192]
[1755526906400,54.0,181.23,181.08,9.03656576]
[1755526906702,54.0,181.23,181.1,5.5188]
[1755526907102,54.0,181.23,181.08,9.03656576]
[1755526907302,54.0,181.23,181.12,5.5181]
[1755526907500,54.0,181.22,181.12,5.5181]
[1755526908395,54.0,181.22,181.12,11.33170136]
[1755526909293,54.0,181.22,181.15,5.81360136]
[1755526909496,54.0,181.27,181.15,5.81360136]
[1755526909998,54.0,181.27,181.15,11.33080136]
[1755526910206,54.0,181.27,181.13,5.81360136]
[1755526910503,70.57,181.27,181.13,5.81360136]
[1755526910704,4.72556858,181.26,181.13,5.81360136]
[1755526910903,70.57,181.27,181.13,5.81360136]
[1755526911299,4.72663032,181.26,181.13,5.81360136]
[1755526911500,70.57,181.27,181.13,5.81360136]
[1755526911701,4.72769003,181.26,181.13,5.81360136]
[1755526911907,70.57,181.27,181.13,11.33150136]
[1755526912198,4.7286225,181.26,181.13,5.81360136]
[1755526912405,4.72866753,181.25,181.13,5.81360136]
[1755526912606,76.38360136,181.27,181.13,5.81360136]
[1755526912905,4.72882807,181.26,181.13,5.81360136]
[1755526913106,4.72882807,181.25,181.13,5.81360136]
[1755526913296,54.0,181.24,181.13,5.81360136]
[1755526914308,54.0,181.24,181.13,11.33160136]
[1755526914501,54.0,181.24,181.13,5.81360136]
[1755526914706,54.0,181.24,181.16,5.81360136]
[1755526914902,54.0,181.29,181.19,5.81360136]
[1755526915503,54.0,181.29,181.21,5.5156]
[1755526915812,54.0,181.29,181.19,5.81360136]
[1755526916500,54.0,181.29,181.2,5.5157]
[1755526917513,54.0,181.29,181.19,11.32970136]
[1755526918004,54.0,181.29,181.19,5.81360136]
[1755526918205,4.74287238,181.28,181.19,5.81360136]
[1755526918411,4.74287238,181.27,181.19,5.81360136]
[1755526918610,54.0,181.29,181.19,5.81360136]
[1755526918912,4.74389914,181.28,181.19,5.81360136]
[1755526919208,4.74769793,181.27,181.19,5.81360136]
[1755526919408,54.0,181.29,181.19,5.81360136]
[1755526919601,4.74735001,181.28,181.19,5.81360136]
[1755526919803,4.74735001,181.27,181.19,5.81360136]
[1755526920008,54.0,181.29,181.19,5.81360136]
[1755526920511,4.75078918,181.28,181.19,5.81360136]
[1755526920712,4.75078918,181.27,181.2,5.5158]
[1755526920909,54.0,181.29,181.25,5.81360136]
[1755526921119,54.0,181.35,181.28,5.81360136]
[1755526921413,370.56,181.37,181.28,5.81360136]
[1755526921713,4.75484741,181.36,181.28,5.81360136]
[1755526921914,4.75484741,181.35,181.24,5.81360136]
[1755526922215,4.75484741,181.34,181.28,5.5135]
[1755526922511,54.0,181.4,181.3,5.81360136]
[1755526922709,4.75377328,181.39,181.3,5.81360136]
[1755526922914,4.75377328,181.38,181.3,5.81360136]
[1755526923116,4.75377328,181.37,181.3,5.81360136]
[1755526923307,145.86136229,181.43,181.3,11.32620136]
[1755526923509,7.4029282,181.42,181.3,11.32620136]
[1755526923717,4.75396272,181.41,181.3,11.32620136]
[1755526923908,4.75396272,181.4,181.33,5.81360136]
[1755526924204,4.75396272,181.39,181.33,5.81360136]
[1755526924414,145.86136229,181.43,181.33,5.81360136]
[1755526924610,4.74920693,181.42,181.33,5.81360136]
[1755526924810,4.74920693,181.41,181.33,5.81360136]
[1755526925002,4.74920693,181.4,181.33,5.81360136]
[1755526925205,4.74920693,181.39,181.33,5.81360136]
[1755526925405,145.86136229,181.43,181.33,5.81360136]
[1755526925615,4.74657837,181.42,181.33,5.81360136]
[1755526925809,4.74657837,181.41,181.3,5.81360136]
[1755526926006,4.74657837,181.4,181.3,5.81360136]
[1755526926216,4.74657837,181.39,181.3,5.81360136]
[1755526926414,151.67496365,181.43,181.3,5.81360136]
[1755526926715,4.74422454,181.42,181.33,5.81360136]
[1755526926918,4.74422454,181.41,181.33,5.81360136]
[1755526927112,4.74422454,181.4,181.33,5.81360136]
[1755526927312,4.74422454,181.39,181.33,5.81360136]
[1755526927513,145.86136229,181.43,181.33,5.81360136]
[1755526927705,4.74083959,181.42,181.33,5.81360136]
[1755526927906,4.74083959,181.41,181.33,5.81360136]
[1755526928116,54.0,181.42,181.33,5.81360136]
[1755526928320,4.74068925,181.41,181.33,5.81360136]
[1755526928517,4.74068925,181.4,181.33,5.81360136]
[1755526928718,4.74068925,181.39,181.33,5.81360136]
[1755526929017,54.0,181.42,181.33,5.81360136]
[1755526929218,4.73876796,181.41,181.33,5.81360136]
[1755526929412,54.0,181.42,181.33,5.81360136]
[1755526930018,54.0,181.42,181.33,11.32550136]
[1755526930517,54.0,181.42,181.33,5.81360136]
[1755526930713,4.73068993,181.41,181.33,5.81360136]
[1755526930912,54.0,181.42,181.33,5.81360136]
[1755526933821,54.0,181.42,181.34,5.5116]
[1755526934117,54.0,181.42,181.34,11.32520136]
[1755526935517,387.31,181.47,181.22,146.48]
[1755526935518,370.74,181.47,181.37,5.81360136]
[1755526936117,54.0,181.51,181.4,5.81360136]
[1755526936719,54.0,181.51,181.43,11.32250136]
[1755526937023,200.38,181.55,181.43,5.81360136]
[1755526937418,5.68092052,181.54,181.43,5.81360136]
[1755526937611,4.72180687,181.53,181.43,5.81360136]
[1755526937814,0.95911365,181.54,181.43,5.81360136]
[1755526937815,4.71899812,181.52,181.43,5.81360136]
[1755526938016,0.95911365,181.54,181.43,5.81360136]
[1755526938219,4.71853704,181.53,181.42,5.81360136]
[1755526938421,4.71853704,181.52,181.42,5.81360136]
[1755526938625,0.95911365,181.54,181.42,5.81360136]
[1755526938922,4.71341847,181.53,181.42,11.32270136]
[1755526939121,4.71341847,181.52,181.42,11.32270136]
[1755526939320,0.95911365,181.54,181.42,11.32270136]
[1755526939520,4.70994756,181.53,181.42,5.81360136]
[1755526939726,146.3,181.57,181.42,5.81360136]
[1755526940028,4.71042834,181.56,181.45,5.81360136]
[1755526940225,4.71042834,181.55,181.45,5.81360136]
[1755526940428,4.71042834,181.54,181.45,5.81360136]
[1755526940628,147.259074,181.57,181.45,5.81360136]
[1755526940828,4.70726635,181.56,181.45,5.81360136]
[1755526941028,4.70726635,181.55,181.45,5.81360136]
[1755526941223,147.259074,181.57,181.45,5.81360136]
[1755526941224,4.70726635,181.54,181.45,5.81360136]
[1755526941418,147.259074,181.57,181.45,5.81360136]
[1755526941622,4.70506413,181.56,181.45,5.81360136]
[1755526941826,4.70506413,181.55,181.45,5.81360136]
[1755526942031,4.70506413,181.54,181.45,5.81360136]
[1755526942219,147.259074,181.57,181.45,5.81360136]
[1755526942522,4.70587115,181.56,181.45,5.81360136]
[1755526942824,147.259074,181.57,181.42,5.81360136]
[1755526942825,10.51947251,181.55,181.42,5.81360136]
[1755526943028,4.70587115,181.54,181.41,5.81360136]
[1755526943225,4.70587115,181.54,181.34,11.023]
[1755526943226,4.70445443,181.53,181.44,5.81360136]
[1755526943426,152.97267536,181.57,181.44,11.32200136]
[1755526943624,4.70443885,181.56,181.44,11.32200136]
[1755526943932,4.70443885,181.55,181.44,11.32200136]
[1755526944230,4.70443885,181.54,181.47,5.81360136]
[1755526944422,147.159074,181.57,181.37,11.0213]
[1755526944628,4.70053167,181.56,181.47,5.81360136]
[1755526944828,54.0,181.61,181.47,5.81360136]
[1755526945026,4.70128316,181.6,181.5,5.81360136]
[1755526945230,4.70128316,181.59,181.5,5.81360136]
[1755526945529,146.16,181.61,181.5,5.81360136]
[1755526945530,4.70128316,181.58,181.5,5.81360136]
[1755526945730,4.70128316,181.57,181.5,5.81360136]
[1755526946032,146.16,181.61,181.5,5.81360136]
[1755526946425,4.69976675,181.6,181.5,5.81360136]
[1755526946629,4.69976675,181.59,181.5,5.81360136]
[1755526946827,146.16,181.61,181.5,5.81360136]
[1755526947030,4.69845407,181.6,181.5,5.81360136]
[1755526947227,4.69845407,181.59,181.5,5.81360136]
[1755526947427,146.16,181.61,181.5,5.81360136]
[1755526947428,4.69845407,181.58,181.5,5.81360136]
[1755526947629,4.69845407,181.57,181.5,5.81360136]
[1755526947829,146.12,181.61,181.5,5.81360136]
[1755526948036,4.69761052,181.6,181.5,5.81360136]
[1755526948227,4.69761052,181.59,181.5,5.81360136]
[1755526948423,4.69761052,181.58,181.5,5.81360136]
[1755526948629,14.95353379,181.82,181.44,5.81360136]
[1755526948630,5.81360136,181.69,181.56,5.81360136]
[1755526948832,146.08,181.66,181.56,5.81360136]
[1755526949027,4.69724366,181.65,181.56,5.81360136]
[1755526949435,4.69724366,181.64,181.56,5.81360136]
[1755526949733,4.69724366,181.63,181.56,5.81360136]
[1755526949933,4.69724366,181.62,181.58,0.03480877]
[1755526950136,146.06,181.67,181.58,0.03480877]
[1755526950334,4.69603434,181.66,181.58,0.03480877]
[1755526950638,4.69603434,181.65,181.58,0.03480877]
[1755526950840,4.69603434,181.64,181.58,0.03480877]
[1755526951035,4.69603434,181.63,181.58,0.03480877]
[1755526951334,0.95838727,181.68,181.58,0.03480877]
[1755526951534,4.69571666,181.67,181.59,5.81360136]
[1755526951725,4.69571666,181.66,181.6,5.5036]
[1755526951926,234.378449,181.71,181.6,5.5036]
[1755526952139,4.69645374,181.7,181.6,5.5036]
[1755526952448,4.69645374,181.69,181.59,11.31760136]
[1755526952636,4.69645374,181.68,181.59,5.81360136]
[1755526952837,4.69645374,181.67,181.59,5.81360136]
[1755526953032,234.378449,181.71,181.59,5.81360136]
[1755526953238,4.69274265,181.7,181.59,5.81360136]
[1755526953442,4.69274265,181.69,181.59,5.81360136]
[1755526953648,4.69274265,181.68,181.59,11.31740136]
[1755526953841,4.69274265,181.67,181.59,11.31740136]
[1755526954138,4.69434982,181.66,181.59,5.81360136]
[1755526954341,234.378449,181.71,181.59,5.81360136]
[1755526954543,4.69155798,181.7,181.59,5.81360136]
[1755526954744,4.69155798,181.69,181.59,5.81360136]
[1755526954940,4.69155798,181.68,181.59,5.81360136]
[1755526955139,4.69155798,181.67,181.59,11.31770136]
[1755526955343,234.378449,181.71,181.59,5.81360136]
[1755526955544,4.69288396,181.7,181.62,5.81360136]
[1755526955742,4.69288396,181.69,181.62,5.81360136]
[1755526955939,4.69026394,181.68,181.62,5.81360136]
[1755526956239,4.69026394,181.67,181.62,5.81360136]
[1755526956445,4.69026394,181.66,181.62,5.81360136]
[1755526956646,234.378449,181.71,181.62,5.81360136]
[1755526956836,4.6900166,181.7,181.62,5.81360136]
[1755526957035,4.6900166,181.69,181.62,5.81360136]
[1755526957240,4.6900166,181.68,181.59,5.81360136]
[1755526957535,4.6900166,181.67,181.59,5.81360136]
[1755526957743,234.378449,181.71,181.59,5.81360136]
[1755526957744,4.6900166,181.66,181.59,5.81360136]
[1755526957944,4.6900166,181.65,181.59,5.81360136]
[1755526958243,234.378449,181.71,181.59,5.81360136]
[1755526958446,4.69493623,181.7,181.59,5.81360136]
[1755526958642,4.69493623,181.69,181.59,11.31760136]
[1755526958948,4.69493623,181.68,181.49,11.0141]
[1755526959151,4.69493623,181.67,181.61,5.81360136]